fUSD/lending_fUSD_20240813
["ID","MTS","AMOUNT","RATE_DAILY","PERIOD"]
[334746832,1723534240230,-344.03988,0.000138,2]
[334746833,1723534240242,-2723.6263575,0.000138,2]
[334747007,1723534243141,-200.0,0.00013773,2]
[334747008,1723534243151,-879.98166367,0.000138,2]
[334747011,1723534248159,-136425.75706319,0.000138,2]
[334747012,1723534248174,-11516.93573788,0.000138,2]
[334747013,1723534248186,-2661.4,0.000138,2]
[334747014,1723534248221,-419.78850097,0.000138,2]
[334747015,1723534248308,-5213.23644317,0.000138,2]
[334747018,1723534323291,810.51889632,0.0001265,2]
[334747019,1723534387629,258.5,0.00011422,2]
[334747028,1723534460233,9605.0,0.00025,60]
[334747029,1723534464175,616.0,0.00012997,2]
[334747030,1723534562316,6308.91919206,9.685e-05,2]
[334747031,1723534637655,158.05,0.00012918,2]
[334747032,1723534637854,158.05,0.00012925,2]
[334747033,1723534638019,158.05,0.00012932,2]
[334747034,1723534638721,158.05,0.0001294,2]
[334747035,1723534638815,158.05,0.00012947,2]
[334747036,1723534638911,158.05,0.00012954,2]
[334747037,1723534639033,158.05,0.00012961,2]
[334747038,1723534639243,158.05,0.00012968,2]
[334747039,1723534639879,158.05,0.00012975,2]
[334747040,1723534640281,158.05,0.00012983,2]
[334747041,1723534642748,10000.0,0.00012931,2]
[334747042,1723534670435,23900.0,0.00012915,2]
[334747050,1723534874799,245.57,0.00010948,2]
[334747051,1723534879529,290.21,0.00012837,2]
[334747052,1723534920464,4173.1045496,0.00011,2]
[334747053,1723534921198,4173.1045496,0.000125,2]
[334747054,1723534929156,507.2,0.00012809,2]
[334747055,1723535036012,250.0,0.00012781,2]
[334747062,1723535386407,152.8,0.00012734,2]
[334747098,1723535432072,-921.3480316,0.00013165,2]
[334747099,1723535432082,-73.30677875,0.00013212,2]
[334747100,1723535432098,-172.26322125,0.00013212,2]
[334747102,1723535432107,-169.61,0.00013256,2]
[334747104,1723535432117,-1270.88858595,0.000133,2]
[334747106,1723535432137,-499.29,0.000133,2]
[334747109,1723535432148,-2553.77089405,0.000133,2]
[334747112,1723535432158,-308.32,0.00013362,2]
[334747115,1723535432168,-1406.25774236,0.00013378,2]
[334747117,1723535432177,-328.27252306,0.00013489,2]
[334747119,1723535432186,-420.36124782,0.00013498,2]
[334747122,1723535432196,-300.0,0.00013529,2]
[334747125,1723535432205,-552.3777,0.0001353,2]
[334747128,1723535432214,-1000.0,0.0001353,2]
[334747131,1723535432224,-1000.0,0.0001353,2]
[334747134,1723535432234,-474.3151,0.0001353,2]
[334747136,1723535432243,-2970.5966,0.0001353,2]
[334747138,1723535432252,-2776.01592353,0.00013548,2]
[334747141,1723535432300,-495.74,0.00013548,2]
[334747153,1723535438049,-433.57215512,0.00013548,2]
[334747160,1723535438424,-533.36845093,0.00013548,2]
[334747163,1723535438448,-1792.855,0.00013548,2]
[334747165,1723535438459,-5209.75432339,0.00013548,2]
[334747168,1723535438480,-1939.19935657,0.00013548,2]
[334747170,1723535438491,-7458.37875136,0.00013548,2]
[334747172,1723535438500,-2778.02388924,0.00013548,2]
[334747299,1723535439902,-389.44550813,0.00013548,2]
[334747304,1723535439957,-2463.81135,0.00013548,2]
[334747305,1723535440012,-1972.51925263,0.00013548,2]
[334747306,1723535440022,-5000.0,0.00013579,2]
[334747307,1723535440031,-5440.65,0.00013585,2]
[334747308,1723535440040,-5155.11,0.00013585,2]
[334747309,1723535440050,-1700.0,0.000136,4]
[334747310,1723535440059,-150.0,0.00013628,2]
[334747311,1723535440068,-1517.42,0.00013629,2]
[334747312,1723535440077,-338.18913156,0.00013629,2]
[334747313,1723535440087,-29017.27920739,0.0001363,2]
[334747314,1723535440103,-670.37,0.0001363,2]
[334747315,1723535440128,-25000.00000001,0.0001363,2]
[334747316,1723535440139,-5106.5,0.0001363,2]
[334747317,1723535440175,-557.38108761,0.0001363,2]
[334747479,1723535443249,-932.77778032,0.0001331,2]
[334747490,1723535443384,-473.47996204,0.0001331,2]
[334747492,1723535443393,-388.08478933,0.0001345,2]
[334747494,1723535443403,-2106.25719877,0.0001363,2]
[334747831,1723535446923,-109835.55660622,0.0001363,2]
[334747833,1723535446933,-166.39780491,0.00013698,2]
[334747835,1723535446943,-200.0,0.00013699,2]
[334747837,1723535446952,-2751.0,0.00013699,2]
[334747839,1723535446962,-179.73,0.00013699,2]
[334747841,1723535446971,-493.63885733,0.00013699,2]
[334747843,1723535446981,-523.97334305,0.00013699,2]
[334747845,1723535446991,-3400.0,0.000137,5]
[334747847,1723535447000,-152.42,0.00013719,2]
[334747849,1723535447009,-547.87854217,0.0001372,2]
[334747851,1723535447019,-155.0,0.0001372,2]
[334747853,1723535447028,-199.95775252,0.00013727,2]
[334747855,1723535447038,-5007.80787091,0.00013727,2]
[334747857,1723535447047,-1412.75,0.00013727,2]
[334747859,1723535447056,-500.0,0.00013727,2]
[334747861,1723535447066,-500.0,0.00013727,2]
[334747862,1723535447075,-500.0,0.00013727,2]
[334747864,1723535447084,-500.0,0.00013727,2]
[334747865,1723535447093,-500.0,0.00013727,2]
[334747867,1723535447102,-500.0,0.00013727,2]
[334747869,1723535447111,-500.0,0.00013727,2]
[334747871,1723535447121,-510.80273406,0.00013728,2]
[334747873,1723535447131,-500.0,0.00013728,2]
[334747875,1723535447140,-500.0,0.00013728,2]
[334747876,1723535447150,-500.0,0.00013728,2]
[334747878,1723535447160,-513.52562465,0.00013728,2]
[334747880,1723535447169,-500.0,0.00013728,2]
[334747882,1723535447181,-500.0,0.00013728,2]
[334747884,1723535447190,-500.0,0.00013728,2]
[334747886,1723535447200,-500.0,0.00013728,2]
[334747888,1723535447209,-500.0,0.00013728,2]
[334747890,1723535447218,-500.0,0.00013728,2]
[334747892,1723535447228,-500.0,0.00013728,2]
[334747894,1723535447237,-508.59,0.00013728,2]
[334747896,1723535447246,-500.0,0.00013728,2]
[334747898,1723535447255,-500.0,0.00013728,2]
[334747899,1723535447264,-500.0,0.00013728,2]
[334747901,1723535447274,-500.0,0.00013728,2]
[334747903,1723535447283,-500.0,0.00013728,2]
[334747905,1723535447292,-500.0,0.00013728,2]
[334747907,1723535447301,-511.72127538,0.00013728,2]
[334747909,1723535447310,-510.4702156,0.00013728,2]
[334747911,1723535447320,-500.0,0.00013728,2]
[334747913,1723535447329,-500.0,0.00013728,2]
[334747915,1723535447338,-500.0,0.00013728,2]
[334747917,1723535447347,-500.0,0.00013728,2]
[334747919,1723535447356,-500.0,0.00013728,2]
[334747921,1723535447365,-500.0,0.00013728,2]
[334747923,1723535447375,-516.73800003,0.00013728,2]
[334747925,1723535447383,-510.32081926,0.00013728,2]
[334747926,1723535447393,-500.0,0.00013728,2]
[334747928,1723535447402,-500.0,0.00013728,2]
[334747930,1723535447411,-500.0,0.00013728,2]
[334747932,1723535447420,-500.0,0.00013728,2]
[334747934,1723535447430,-500.0,0.00013728,2]
[334747936,1723535447440,-500.0,0.00013728,2]
[334747938,1723535447449,-500.0,0.00013728,2]
[334747940,1723535447458,-500.0,0.00013728,2]
[334747942,1723535447468,-500.0,0.00013728,2]
[334747944,1723535447478,-500.0,0.00013728,2]
[334747946,1723535447487,-500.0,0.00013728,2]
[334747948,1723535447496,-500.0,0.00013728,2]
[334747950,1723535447506,-500.0,0.00013728,2]
[334747952,1723535447515,-500.0,0.00013728,2]
[334747954,1723535447527,-500.0,0.00013728,2]
[334747956,1723535447540,-500.0,0.00013728,2]
[334747958,1723535447550,-500.0,0.00013728,2]
[334747960,1723535447559,-500.0,0.00013728,2]
[334747962,1723535447568,-500.0,0.00013728,2]
[334747964,1723535447579,-500.0,0.00013728,2]
[334747966,1723535447588,-500.0,0.00013728,2]
[334747968,1723535447597,-500.0,0.00013728,2]
[334747970,1723535447607,-500.0,0.00013728,2]
[334747972,1723535447616,-500.0,0.00013728,2]
[334747974,1723535447626,-500.0,0.00013728,2]
[334747976,1723535447635,-500.0,0.00013728,2]
[334747978,1723535447644,-500.0,0.00013728,2]
[334747980,1723535447654,-500.0,0.00013728,2]
[334747981,1723535447663,-500.0,0.00013728,2]
[334747983,1723535447672,-500.0,0.00013728,2]
[334747985,1723535447681,-506.27245084,0.00013728,2]
[334747987,1723535447690,-500.0,0.00013728,2]
[334747989,1723535447699,-633.69785281,0.00013728,2]
[334747991,1723535447708,-500.0,0.00013728,2]
[334747993,1723535447717,-500.0,0.00013728,2]
[334747995,1723535447727,-509.06312444,0.00013728,2]
[334747996,1723535447742,-511.13455096,0.00013728,2]
[334747998,1723535447752,-500.0,0.00013728,2]
[334748000,1723535447762,-500.0,0.00013728,2]
[334748002,1723535447771,-500.0,0.00013728,2]
[334748004,1723535447780,-500.0,0.00013728,2]
[334748006,1723535447790,-500.0,0.00013728,2]
[334748008,1723535447799,-500.0,0.00013728,2]
[334748010,1723535447808,-500.0,0.00013728,2]
[334748012,1723535447817,-500.0,0.00013728,2]
[334748014,1723535447828,-500.0,0.00013728,2]
[334748016,1723535447838,-500.0,0.00013728,2]
[334748018,1723535447847,-500.0,0.00013728,2]
[334748020,1723535447857,-500.0,0.00013728,2]
[334748022,1723535447866,-500.0,0.00013728,2]
[334748024,1723535447876,-500.0,0.00013728,2]
[334748026,1723535447885,-500.0,0.00013728,2]
[334748028,1723535447895,-500.0,0.00013728,2]
[334748030,1723535447905,-539.1964894,0.00013728,2]
[334748032,1723535447914,-500.0,0.00013728,2]
[334748034,1723535447923,-500.0,0.00013728,2]
[334748035,1723535447932,-513.20655122,0.00013728,2]
[334748037,1723535447941,-500.0,0.00013728,2]
[334748039,1723535447950,-500.0,0.00013728,2]
[334748041,1723535447959,-500.0,0.00013728,2]
[334748043,1723535447968,-500.0,0.00013728,2]
[334748045,1723535447978,-500.0,0.00013728,2]
[334748047,1723535447987,-500.0,0.00013728,2]
[334748049,1723535447996,-529.47096862,0.00013728,2]
[334748051,1723535448005,-500.0,0.00013728,2]
[334748053,1723535448014,-502.53459531,0.00013728,2]
[334748055,1723535448024,-500.0,0.00013728,2]
[334748057,1723535448032,-500.0,0.00013728,2]
[334748059,1723535448042,-500.0,0.00013728,2]
[334748061,1723535448051,-500.0,0.00013728,2]
[334748063,1723535448059,-506.15377114,0.00013728,2]
[334748064,1723535448068,-500.0,0.00013728,2]
[334748066,1723535448078,-493.45495504,0.00013728,2]
[334748068,1723535448087,-500.0,0.00013728,2]
[334748070,1723535448096,-500.0,0.00013728,2]
[334748072,1723535448105,-500.0,0.00013728,2]
[334748074,1723535448115,-500.0,0.00013728,2]
[334748076,1723535448124,-500.0,0.00013728,2]
[334748078,1723535448133,-500.0,0.00013728,2]
[334748080,1723535448142,-500.0,0.00013728,2]
[334748082,1723535448151,-500.0,0.00013728,2]
[334748084,1723535448160,-510.35427072,0.00013728,2]
[334748086,1723535448169,-500.0,0.00013728,2]
[334748088,1723535448178,-500.0,0.00013728,2]
[334748089,1723535448188,-500.0,0.00013728,2]
[334748091,1723535448197,-500.0,0.00013728,2]
[334748093,1723535448207,-500.0,0.00013728,2]
[334748095,1723535448217,-500.0,0.00013728,2]
[334748097,1723535448230,-500.0,0.00013728,2]
[334748099,1723535448241,-500.0,0.00013728,2]
[334748101,1723535448250,-510.98430663,0.00013728,2]
[334748103,1723535448260,-500.0,0.00013728,2]
[334748105,1723535448269,-6591.73,0.00013728,2]
[334748107,1723535448278,-500.0,0.00013728,2]
[334748109,1723535448287,-500.0,0.00013728,2]
[334748111,1723535448297,-500.0,0.00013728,2]
[334748113,1723535448306,-500.0,0.00013728,2]
[334748115,1723535448316,-500.0,0.00013728,2]
[334748117,1723535448325,-1037.55,0.00013728,2]
[334748119,1723535448335,-500.0,0.00013728,2]
[334748121,1723535448344,-500.0,0.00013728,2]
[334748123,1723535448353,-500.0,0.00013728,2]
[334748124,1723535448362,-553.81865359,0.00013728,2]
[334748126,1723535448371,-500.0,0.00013728,2]
[334748128,1723535448380,-500.0,0.00013728,2]
[334748130,1723535448390,-500.0,0.00013728,2]
[334748132,1723535448399,-500.0,0.00013728,2]
[334748134,1723535448409,-500.0,0.00013728,2]
[334748136,1723535448418,-500.0,0.00013728,2]
[334748138,1723535448428,-500.0,0.00013728,2]
[334748140,1723535448438,-500.0,0.00013728,2]
[334748142,1723535448447,-981.15,0.00013728,2]
[334748144,1723535448456,-500.0,0.00013728,2]
[334748145,1723535448466,-500.0,0.00013728,2]
[334748147,1723535448475,-500.0,0.00013728,2]
[334748149,1723535448484,-500.0,0.00013728,2]
[334748151,1723535448493,-500.0,0.00013728,2]
[334748153,1723535448503,-500.0,0.00013728,2]
[334748155,1723535448512,-500.0,0.00013728,2]
[334748157,1723535448521,-509.44020675,0.00013728,2]
[334748159,1723535448532,-553.64,0.00013728,2]
[334748160,1723535448542,-505.73,0.00013728,2]
[334748162,1723535448552,-888.8,0.00013728,2]
[334748164,1723535448561,-500.0,0.00013728,2]
[334748166,1723535448571,-500.0,0.00013728,2]
[334748168,1723535448581,-539.58648539,0.00013728,2]
[334748170,1723535448591,-501.57925098,0.00013728,2]
[334748172,1723535448600,-500.0,0.00013728,2]
[334748174,1723535448612,-500.0,0.00013728,2]
[334748176,1723535448621,-4003.23,0.00013728,2]
[334748178,1723535448630,-500.0,0.00013728,2]
[334748180,1723535448641,-500.0,0.00013728,2]
[334748182,1723535448650,-500.0,0.00013728,2]
[334748183,1723535448660,-500.0,0.00013728,2]
[334748185,1723535448669,-500.0,0.00013728,2]
[334748187,1723535448679,-500.0,0.00013728,2]
[334748189,1723535448688,-773.78,0.00013728,2]
[334748191,1723535448698,-500.0,0.00013728,2]
[334748193,1723535448708,-560.08,0.00013728,2]
[334748195,1723535448718,-500.0,0.00013728,2]
[334748197,1723535448728,-500.0,0.00013728,2]
[334748199,1723535448738,-500.0,0.00013728,2]
[334748201,1723535448747,-500.0,0.00013728,2]
[334748203,1723535448757,-500.0,0.00013728,2]
[334748204,1723535448766,-1646.38,0.00013728,2]
[334748205,1723535448775,-500.0,0.00013728,2]
[334748206,1723535448784,-500.0,0.00013728,2]
[334748207,1723535448793,-1106.51,0.00013728,2]
[334748208,1723535448802,-1145.83,0.00013728,2]
[334748209,1723535448811,-500.0,0.00013728,2]
[334748211,1723535448820,-500.0,0.00013728,2]
[334748212,1723535448829,-500.0,0.00013728,2]
[334748214,1723535448839,-500.0,0.00013728,2]
[334748216,1723535448848,-1271.02,0.00013728,2]
[334748218,1723535448857,-500.0,0.00013728,2]
[334748220,1723535448866,-500.0,0.00013728,2]
[334748222,1723535448875,-500.0,0.00013728,2]
[334748224,1723535448884,-500.0,0.00013728,2]
[334748226,1723535448893,-500.0,0.00013728,2]
[334748228,1723535448903,-1189.17,0.00013728,2]
[334748230,1723535448912,-756.19,0.00013728,2]
[334748232,1723535448921,-502.71475888,0.00013728,2]
[334748233,1723535448930,-500.0,0.00013728,2]
[334748235,1723535448939,-508.57885378,0.00013728,2]
[334748237,1723535448949,-500.0,0.00013728,2]
[334748239,1723535448959,-511.45789105,0.00013728,2]
[334748241,1723535448968,-500.0,0.00013728,2]
[334748243,1723535448977,-633.87,0.00013728,2]
[334748245,1723535448987,-500.0,0.00013728,2]
[334748247,1723535448996,-500.0,0.00013728,2]
[334748249,1723535449006,-502.85927738,0.00013728,2]
[334748251,1723535449015,-209.06097212,0.00013728,2]
[334748253,1723535449024,-500.0,0.00013728,2]
[334748255,1723535449033,-500.0,0.00013728,2]
[334748257,1723535449042,-500.0,0.00013728,2]
[334748259,1723535449051,-500.0,0.00013728,2]
[334748261,1723535449060,-507.8,0.00013728,2]
[334748263,1723535449070,-500.0,0.00013728,2]
[334748265,1723535449079,-512.16266264,0.00013728,2]
[334748267,1723535449089,-500.0,0.00013728,2]
[334748269,1723535449099,-500.0,0.00013728,2]
[334748291,1723535449297,-555.42,0.00013728,2]
[334748293,1723535449307,-500.0,0.00013728,2]
[334748295,1723535449316,-500.0,0.00013728,2]
[334748297,1723535449325,-869.38,0.00013728,2]
[334748299,1723535449335,-500.0,0.00013728,2]
[334748301,1723535449344,-504.62549472,0.00013728,2]
[334748303,1723535449353,-500.0,0.00013728,2]
[334748305,1723535449363,-500.0,0.00013728,2]
[334748307,1723535449372,-508.53632151,0.00013728,2]
[334748309,1723535449382,-500.0,0.00013728,2]
[334748311,1723535449391,-509.01309895,0.00013728,2]
[334748313,1723535449401,-500.0,0.00013729,2]
[334748315,1723535449410,-500.0,0.00013729,2]
[334748317,1723535449419,-500.0,0.00013729,2]
[334748319,1723535449429,-653.45,0.00013729,2]
[334748321,1723535449438,-500.0,0.00013729,2]
[334748323,1723535449448,-500.0,0.00013729,2]
[334748325,1723535449457,-500.0,0.00013729,2]
[334748327,1723535449466,-500.0,0.00013729,2]
[334748329,1723535449475,-514.45199152,0.00013729,2]
[334748330,1723535449485,-663.86,0.00013729,2]
[334748332,1723535449494,-500.0,0.00013729,2]
[334748334,1723535449503,-500.0,0.00013729,2]
[334748336,1723535449513,-500.0,0.00013729,2]
[334748338,1723535449522,-500.0,0.00013729,2]
[334748340,1723535449534,-500.0,0.00013729,2]
[334748342,1723535449544,-500.0,0.00013729,2]
[334748345,1723535449554,-500.0,0.00013729,2]
[334748347,1723535449564,-784.51,0.00013729,2]
[334748348,1723535449574,-500.0,0.00013729,2]
[334748351,1723535449584,-500.0,0.00013729,2]
[334748353,1723535449594,-500.0,0.00013729,2]
[334748355,1723535449604,-500.0,0.00013729,2]
[334748357,1723535449614,-500.0,0.00013729,2]
[334748359,1723535449624,-510.5578524,0.00013729,2]
[334748360,1723535449633,-500.0,0.00013729,2]
[334748362,1723535449643,-500.0,0.00013729,2]
[334748364,1723535449652,-500.0,0.00013729,2]
[334748366,1723535449662,-500.0,0.00013729,2]
[334748368,1723535449671,-500.0,0.00013729,2]
[334748370,1723535449681,-507.12436236,0.00013729,2]
[334748372,1723535449690,-500.0,0.00013729,2]
[334748374,1723535449699,-500.0,0.00013729,2]
[334748376,1723535449710,-500.0,0.00013729,2]
[334748378,1723535449720,-508.97544746,0.00013729,2]
[334748380,1723535449730,-500.0,0.00013729,2]
[334748382,1723535449740,-500.0,0.00013729,2]
[334748384,1723535449749,-500.0,0.00013729,2]
[334748386,1723535449759,-500.0,0.00013729,2]
[334748388,1723535449769,-510.70045436,0.00013729,2]
[334748390,1723535449778,-500.0,0.00013729,2]
[334748392,1723535449788,-500.0,0.00013729,2]
[334748394,1723535449798,-500.0,0.00013729,2]
[334748396,1723535449808,-500.0,0.00013729,2]
[334748398,1723535449817,-500.0,0.00013729,2]
[334748400,1723535449827,-500.0,0.00013729,2]
[334748402,1723535449836,-500.0,0.00013729,2]
[334748404,1723535449845,-508.15125122,0.00013729,2]
[334748405,1723535449857,-500.0,0.00013729,2]
[334748407,1723535449867,-500.0,0.00013729,2]
[334748409,1723535449876,-500.0,0.00013729,2]
[334748411,1723535449886,-500.0,0.00013729,2]
[334748413,1723535449897,-512.18747699,0.00013729,2]
[334748415,1723535449906,-500.0,0.00013729,2]
[334748417,1723535449915,-500.0,0.00013729,2]
[334748419,1723535449924,-500.0,0.00013729,2]
[334748421,1723535449934,-500.0,0.00013729,2]
[334748423,1723535449943,-2199.74,0.00013729,2]
[334748425,1723535449953,-500.0,0.00013729,2]
[334748427,1723535449963,-500.0,0.00013729,2]
[334748429,1723535449973,-554.93922958,0.00013729,2]
[334748431,1723535449985,-500.0,0.00013729,2]
[334748433,1723535449995,-500.0,0.00013729,2]
[334748435,1723535450005,-502.33401771,0.00013729,2]
[334748437,1723535450016,-500.0,0.00013729,2]
[334748439,1723535450025,-506.64502867,0.00013729,2]
[334748441,1723535450035,-500.0,0.00013729,2]
[334748443,1723535450045,-517.91892933,0.00013729,2]
[334748445,1723535450055,-500.0,0.00013729,2]
[334748447,1723535450065,-500.0,0.00013729,2]
[334748449,1723535450075,-500.0,0.00013729,2]
[334748451,1723535450084,-500.0,0.00013729,2]
[334748453,1723535450094,-526.65743993,0.00013729,2]
[334748455,1723535450103,-509.5861666,0.00013729,2]
[334748457,1723535450112,-500.0,0.00013729,2]
[334748459,1723535450122,-509.41706059,0.00013729,2]
[334748461,1723535450133,-500.0,0.00013729,2]
[334748463,1723535450143,-502.24623323,0.00013729,2]
[334748465,1723535450153,-500.0,0.00013729,2]
[334748467,1723535450162,-510.37525752,0.00013729,2]
[334748469,1723535450172,-500.0,0.00013729,2]
[334748470,1723535450181,-500.0,0.00013729,2]
[334748472,1723535450190,-500.0,0.00013729,2]
[334748474,1723535450200,-500.0,0.00013729,2]
[334748476,1723535450209,-500.0,0.00013729,2]
[334748478,1723535450218,-500.0,0.00013729,2]
[334748480,1723535450229,-1837.44,0.00013729,2]
[334748482,1723535450238,-909.74,0.00013729,2]
[334748484,1723535450247,-500.0,0.00013729,2]
[334748486,1723535450257,-500.0,0.00013729,2]
[334748488,1723535450266,-500.0,0.00013729,2]
[334748490,1723535450276,-500.0,0.00013729,2]
[334748492,1723535450285,-500.0,0.00013729,2]
[334748494,1723535450294,-503.25347989,0.00013729,2]
[334748496,1723535450303,-16518.43,0.00013729,2]
[334748498,1723535450312,-513.36822023,0.00013729,2]
[334748500,1723535450321,-503.93575513,0.00013729,2]
[334748502,1723535450330,-500.0,0.00013729,2]
[334748503,1723535450339,-500.0,0.00013729,2]
[334748505,1723535450348,-500.0,0.00013729,2]
[334748507,1723535450358,-500.0,0.00013729,2]
[334748509,1723535450367,-500.0,0.00013729,2]
[334748511,1723535450376,-500.0,0.00013729,2]
[334748513,1723535450386,-500.0,0.00013729,2]
[334748515,1723535450395,-500.0,0.00013729,2]
[334748517,1723535450405,-500.0,0.00013729,2]
[334748519,1723535450414,-509.53148799,0.00013729,2]
[334748521,1723535450423,-500.0,0.00013729,2]
[334748523,1723535450432,-500.0,0.00013729,2]
[334748524,1723535450441,-503.58656942,0.00013729,2]
[334748526,1723535450450,-500.0,0.00013729,2]
[334748528,1723535450459,-500.0,0.00013729,2]
[334748530,1723535450468,-932.05,0.00013729,2]
[334748532,1723535450479,-500.0,0.00013729,2]
[334748534,1723535450487,-724.39,0.00013729,2]
[334748536,1723535450496,-500.0,0.00013729,2]
[334748538,1723535450506,-508.93609055,0.00013729,2]
[334748540,1723535450515,-500.0,0.00013729,2]
[334748541,1723535450524,-500.0,0.00013729,2]
[334748543,1723535450536,-500.0,0.00013729,2]
[334748545,1723535450545,-500.0,0.00013729,2]
[334748547,1723535450554,-500.0,0.00013729,2]
[334748549,1723535450563,-500.0,0.00013729,2]
[334748551,1723535450572,-500.0,0.00013729,2]
[334748553,1723535450582,-500.0,0.00013729,2]
[334748555,1723535450591,-500.0,0.00013729,2]
[334748557,1723535450600,-506.94257239,0.00013729,2]
[334748559,1723535450611,-500.0,0.00013729,2]
[334748561,1723535450621,-500.0,0.00013729,2]
[334748563,1723535450630,-587.6,0.00013729,2]
[334748565,1723535450639,-500.0,0.00013729,2]
[334748567,1723535450647,-514.29581395,0.00013729,2]
[334748569,1723535450656,-500.0,0.00013729,2]
[334748570,1723535450666,-908.11,0.00013729,2]
[334748571,1723535450675,-799.22,0.00013729,2]
[334748572,1723535450684,-500.0,0.00013729,2]
[334748573,1723535450693,-500.0,0.00013729,2]
[334748574,1723535450702,-500.0,0.00013729,2]
[334748575,1723535450711,-1082.91,0.00013729,2]
[334748576,1723535450720,-500.0,0.00013729,2]
[334748577,1723535450730,-500.0,0.00013729,2]
[334748578,1723535450739,-500.0,0.00013729,2]
[334748579,1723535450749,-500.0,0.00013729,2]
[334748580,1723535450758,-500.0,0.00013729,2]
[334748581,1723535450768,-500.0,0.00013729,2]
[334748582,1723535450776,-520.00446863,0.00013729,2]
[334748583,1723535450785,-506.6084593,0.00013729,2]
[334748584,1723535450794,-500.0,0.00013729,2]
[334748585,1723535450803,-500.0,0.00013729,2]
[334748586,1723535450812,-15076.44,0.00013729,2]
[334748587,1723535450822,-500.0,0.00013729,2]
[334748588,1723535450831,-500.0,0.00013729,2]
[334748589,1723535450840,-500.0,0.00013729,2]
[334748590,1723535450849,-500.0,0.00013729,2]
[334748591,1723535450857,-503.54828005,0.00013729,2]
[334748592,1723535450867,-500.0,0.00013729,2]
[334748593,1723535450876,-150.02529147,0.00013729,2]
[334748594,1723535450885,-500.0,0.00013729,2]
[334748595,1723535450894,-500.0,0.00013729,2]
[334748596,1723535450903,-500.0,0.00013729,2]
[334748597,1723535450912,-500.0,0.00013729,2]
[334748598,1723535450921,-4670.57,0.00013729,2]
[334748599,1723535450930,-500.0,0.00013729,2]
[334748600,1723535450940,-500.0,0.00013729,2]
[334748601,1723535450949,-500.0,0.00013729,2]
[334748602,1723535450961,-500.0,0.00013729,2]
[334748603,1723535450971,-667.34,0.00013729,2]
[334748604,1723535450982,-515.49846645,0.00013729,2]
[334748605,1723535450990,-500.0,0.00013729,2]
[334748606,1723535450999,-571.04,0.00013729,2]
[334748607,1723535451009,-509.05291761,0.00013729,2]
[334748608,1723535451019,-500.0,0.00013729,2]
[334748609,1723535451028,-500.0,0.00013729,2]
[334748610,1723535451038,-1754.66,0.00013729,2]
[334748611,1723535451047,-500.0,0.00013729,2]
[334748612,1723535451057,-500.0,0.00013729,2]
[334748613,1723535451067,-500.0,0.00013729,2]
[334748614,1723535451077,-500.0,0.00013729,2]
[334748615,1723535451086,-517.60855548,0.00013729,2]
[334748616,1723535451095,-500.0,0.00013729,2]
[334748617,1723535451107,-500.0,0.00013729,2]